fUSD/lending_fUSD_20241106
["ID","MTS","AMOUNT","RATE_DAILY","PERIOD"]
[341427448,1730878246994,-150.0,0.00037901,2]
[341427449,1730878247003,-150.0,0.00037905,2]
[341427450,1730878247013,-150.0,0.00037916,2]
[341427451,1730878247022,-150.0,0.0003792,2]
[341427452,1730878247031,-150.0,0.00037925,2]
[341427453,1730878247040,-150.0,0.00037929,2]
[341427454,1730878247050,-150.0,0.00037934,2]
[341427455,1730878247059,-150.0,0.00037935,2]
[341427456,1730878247069,-150.0,0.00037941,2]
[341427457,1730878247080,-150.0,0.0003795,2]
[341427458,1730878247089,-150.0,0.00037951,2]
[341427459,1730878247099,-150.0,0.00037962,2]
[341427460,1730878247109,-150.0,0.00037967,2]
[341427461,1730878247118,-500.0,0.00037973,5]
[341427462,1730878247128,-500.0,0.00037973,2]
[341427463,1730878247138,-500.0,0.00037973,5]
[341427464,1730878247148,-500.0,0.00037973,5]
[341427465,1730878247157,-500.0,0.00037973,5]
[341427466,1730878247167,-500.0,0.00037973,5]
[341427467,1730878247180,-500.0,0.00037973,5]
[341427468,1730878247189,-500.2241008,0.00037973,5]
[341427469,1730878247198,-500.91473184,0.00037973,5]
[341427470,1730878247208,-150.0,0.00037973,2]
[341427471,1730878247217,-1482.7689232,0.00037973,2]
[341427472,1730878247227,-863.0368399,0.00037974,2]
[341427473,1730878247236,-914.0756427,0.00037974,2]
[341427474,1730878247246,-5115.3404988,0.00037974,2]
[341427475,1730878247255,-5452.6156965,0.00037974,2]
[341427476,1730878247264,-1367.052548,0.00037974,2]
[341427477,1730878247273,-1163.8621311,0.00037974,2]
[341427478,1730878247283,-150.0,0.00037981,2]
[341427479,1730878247292,-442.39089251,0.00037985,2]
[341427480,1730878247301,-150.0,0.00037986,2]
[341427481,1730878247311,-442.39089251,0.00037989,2]
[341427482,1730878247320,-2954.01522731,0.00037989,6]
[341427483,1730878247330,-150.0,0.0003799,2]
[341427484,1730878247339,-150.0,0.0003799,2]
[341427485,1730878247348,-442.39089251,0.0003799,2]
[341427486,1730878247358,-150.0,0.00037991,2]
[341427487,1730878247367,-150.0,0.00037993,2]
[341427488,1730878247377,-802.12851551,0.00037993,30]
[341427489,1730878247386,-622.93574333,0.00037994,14]
[341427490,1730878247396,-596.0,0.00037994,14]
[341427491,1730878247408,-579.66461176,0.00037994,14]
[341427492,1730878247417,-500.0,0.00037994,14]
[341427493,1730878247428,-500.0,0.00037994,14]
[341427494,1730878247438,-577.82,0.00037994,14]
[341427495,1730878247447,-545.88,0.00037994,14]
[341427496,1730878247456,-500.0,0.00037994,14]
[341427497,1730878247465,-500.0,0.00037994,14]
[341427498,1730878247475,-500.0,0.00037994,14]
[341427499,1730878247488,-500.0,0.00037994,14]
[341427500,1730878247498,-500.0,0.00037994,14]
[341427501,1730878247508,-500.0,0.00037994,14]
[341427502,1730878247519,-500.0,0.00037994,14]
[341427503,1730878247529,-500.0,0.00037994,14]
[341427504,1730878247539,-500.0,0.00037994,14]
[341427505,1730878247550,-500.0,0.00037994,14]
[341427506,1730878247560,-500.0,0.00037994,14]
[341427507,1730878247570,-150.0,0.00037994,2]
[341427508,1730878247580,-500.0,0.00037994,14]
[341427509,1730878247592,-1883.13096159,0.00037994,30]
[341427510,1730878247603,-500.0,0.00037994,14]
[341427511,1730878247614,-500.0,0.00037994,14]
[341427512,1730878247625,-500.0,0.00037994,14]
[341427513,1730878247633,-500.0,0.00037994,14]
[341427514,1730878247643,-500.0,0.00037994,14]
[341427515,1730878247652,-614.58,0.00037994,14]
[341427516,1730878247663,-7092.5367518,0.00037994,2]
[341427517,1730878247672,-500.0,0.00037994,14]
[341427518,1730878247684,-500.0,0.00037994,14]
[341427519,1730878247693,-500.0,0.00037994,14]
[341427520,1730878247703,-502.88,0.00037994,14]
[341427521,1730878247712,-453.24,0.00037994,14]
[341427522,1730878247721,-488.52,0.00037994,14]
[341427523,1730878247731,-500.0,0.00037994,14]
[341427524,1730878247740,-500.0,0.00037994,14]
[341427525,1730878247750,-500.0,0.00037994,14]
[341427526,1730878247759,-239.76,0.00037994,14]
[341427527,1730878247769,-500.0,0.00037994,14]
[341427528,1730878247779,-500.0,0.00037994,14]
[341427529,1730878247789,-500.0,0.00037994,14]
[341427530,1730878247798,-500.0,0.00037994,14]
[341427531,1730878247808,-601.53,0.00037994,14]
[341427532,1730878247817,-208.75,0.00037994,14]
[341427533,1730878247826,-224.44,0.00037994,14]
[341427534,1730878247835,-500.0,0.00037994,14]
[341427535,1730878247844,-500.0,0.00037994,14]
[341427536,1730878247853,-500.0,0.00037994,14]
[341427537,1730878247863,-500.0,0.00037994,14]
[341427538,1730878247871,-500.0,0.00037994,14]
[341427539,1730878247880,-500.0,0.00037994,14]
[341427540,1730878247890,-500.0,0.00037994,14]
[341427541,1730878247899,-500.0,0.00037994,14]
[341427542,1730878247908,-500.0,0.00037994,14]
[341427543,1730878247918,-500.0,0.00037994,14]
[341427544,1730878247930,-500.0,0.00037994,14]
[341427545,1730878247939,-262.61127532,0.00037994,14]
[341427546,1730878247949,-500.0,0.00037994,14]
[341427547,1730878247958,-500.0,0.00037994,14]
[341427548,1730878247967,-500.0,0.00037994,14]
[341427549,1730878247976,-500.0,0.00037994,14]
[341427550,1730878247985,-500.0,0.00037994,14]
[341427551,1730878247994,-541.02760115,0.00037994,14]
[341427552,1730878248003,-500.0,0.00037994,14]
[341427553,1730878248012,-284.92687928,0.00037994,14]
[341427554,1730878248021,-500.0,0.00037994,14]
[341427555,1730878248030,-500.0,0.00037994,14]
[341427556,1730878248039,-500.0,0.00037994,14]
[341427557,1730878248048,-500.0,0.00037994,14]
[341427558,1730878248058,-251.77,0.00037994,14]
[341427559,1730878248067,-500.0,0.00037994,14]
[341427560,1730878248076,-500.0,0.00037994,14]
[341427561,1730878248085,-500.0,0.00037994,14]
[341427562,1730878248095,-500.0,0.00037994,14]
[341427563,1730878248104,-509.19929757,0.00037994,14]
[341427564,1730878248113,-500.0,0.00037994,14]
[341427565,1730878248122,-567.53956757,0.00037994,14]
[341427566,1730878248132,-500.0,0.00037994,14]
[341427567,1730878248141,-353.97,0.00037994,14]
[341427568,1730878248151,-500.0,0.00037994,14]
[341427569,1730878248160,-500.0,0.00037994,14]
[341427570,1730878248169,-500.0,0.00037994,14]
[341427571,1730878248180,-500.0,0.00037994,14]
[341427572,1730878248190,-500.0,0.00037994,14]
[341427573,1730878248199,-500.0,0.00037994,14]
[341427574,1730878248208,-500.0,0.00037994,14]
[341427575,1730878248217,-500.0,0.00037995,14]
[341427576,1730878248227,-500.0,0.00037995,14]
[341427577,1730878248236,-596.0,0.00037995,14]
[341427578,1730878248245,-500.0,0.00037995,14]
[341427579,1730878248254,-500.0,0.00037995,14]
[341427580,1730878248263,-549.9711057,0.00037995,14]
[341427581,1730878248272,-500.0,0.00037995,14]
[341427582,1730878248281,-500.0,0.00037995,14]
[341427583,1730878248290,-500.0,0.00037995,7]
[341427584,1730878248299,-500.0,0.00037995,14]
[341427585,1730878248308,-500.0,0.00037995,14]
[341427586,1730878248317,-495.41641758,0.00037995,14]
[341427587,1730878248326,-500.0,0.00037995,14]
[341427588,1730878248335,-500.0,0.00037995,14]
[341427589,1730878248345,-500.0,0.00037995,14]
[341427590,1730878248354,-500.0,0.00037995,14]
[341427591,1730878248363,-500.0,0.00037995,14]
[341427592,1730878248372,-500.0,0.00037995,14]
[341427593,1730878248381,-500.0,0.00037995,14]
[341427594,1730878248392,-500.0,0.00037995,14]
[341427595,1730878248401,-500.0,0.00037995,14]
[341427596,1730878248414,-500.0,0.00037995,14]
[341427597,1730878248422,-500.0,0.00037995,14]
[341427598,1730878248434,-500.0,0.00037995,14]
[341427599,1730878248443,-545.88,0.00037995,14]
[341427600,1730878248454,-500.0,0.00037995,14]
[341427601,1730878248463,-500.0,0.00037995,14]
[341427602,1730878248472,-500.0,0.00037995,14]
[341427603,1730878248482,-500.0,0.00037995,14]
[341427604,1730878248492,-500.0,0.00037995,14]
[341427605,1730878248502,-500.0,0.00037995,14]
[341427606,1730878248511,-500.0,0.00037995,14]
[341427607,1730878248521,-500.0,0.00037995,14]
[341427608,1730878248530,-500.0,0.00037995,14]
[341427609,1730878248539,-500.0,0.00037995,14]
[341427610,1730878248549,-321.58894093,0.00037995,14]
[341427611,1730878248558,-522.05818582,0.00037995,14]
[341427612,1730878248567,-510.1090732,0.00037995,14]
[341427613,1730878248577,-500.0,0.00037995,14]
[341427614,1730878248586,-500.0,0.00037995,14]
[341427615,1730878248595,-500.0,0.00037995,14]
[341427616,1730878248604,-500.0,0.00037995,14]
[341427617,1730878248614,-500.0,0.00037995,14]
[341427618,1730878248623,-500.0,0.00037995,14]
[341427619,1730878248631,-500.0,0.00037995,14]
[341427620,1730878248641,-500.0,0.00037995,14]
[341427621,1730878248651,-500.0,0.00037995,14]
[341427622,1730878248659,-500.0,0.00037995,14]
[341427623,1730878248669,-500.0,0.00037995,14]
[341427624,1730878248679,-500.0,0.00037995,14]
[341427625,1730878248688,-500.0,0.00037995,14]
[341427626,1730878248697,-500.0,0.00037995,14]
[341427627,1730878248706,-500.0,0.00037995,14]
[341427628,1730878248715,-500.0,0.00037995,14]
[341427629,1730878248725,-500.0,0.00037995,14]
[341427630,1730878248734,-500.0,0.00037995,14]
[341427631,1730878248743,-500.0,0.00037995,14]
[341427632,1730878248752,-500.0,0.00037995,14]
[341427633,1730878248764,-596.45,0.00037995,14]
[341427634,1730878248776,-500.0,0.00037995,14]
[341427635,1730878248788,-500.0,0.00037995,14]
[341427636,1730878248799,-500.0,0.00037995,14]
[341427637,1730878248811,-500.0,0.00037995,14]
[341427638,1730878248823,-500.0,0.00037995,14]
[341427639,1730878248834,-566.71627886,0.00037995,14]
[341427640,1730878248844,-500.0,0.00037995,14]
[341427641,1730878248855,-500.0,0.00037995,14]
[341427642,1730878248866,-500.0,0.00037995,14]
[341427643,1730878248877,-500.0,0.00037995,14]
[341427644,1730878248888,-261.51874022,0.00037995,14]
[341427645,1730878248900,-302.49025701,0.00037995,14]
[341427646,1730878248912,-446.07585239,0.00037995,14]
[341427647,1730878248924,-500.0,0.00037995,14]
[341427648,1730878248938,-500.0,0.00037995,14]
[341427649,1730878248949,-500.0,0.00037995,14]
[341427650,1730878248961,-551.14,0.00037995,14]
[341427651,1730878248974,-500.0,0.00037995,14]
[341427652,1730878248986,-460.19396614,0.00037995,14]
[341427653,1730878248997,-500.0,0.00037995,14]
[341427654,1730878249008,-500.0,0.00037995,14]
[341427655,1730878249020,-500.0,0.00037995,14]
[341427656,1730878249032,-500.0,0.00037995,14]
[341427657,1730878249043,-500.0,0.00037995,14]
[341427658,1730878249057,-500.0,0.00037995,14]
[341427659,1730878249070,-500.0,0.00037995,14]
[341427660,1730878249083,-567.09341308,0.00037995,14]
[341427661,1730878249094,-471.13881714,0.00037995,14]
[341427662,1730878249106,-500.0,0.00037995,14]
[341427663,1730878249117,-500.0,0.00037995,14]
[341427664,1730878249127,-501.52405529,0.00037995,14]
[341427665,1730878249137,-593.65273898,0.00037995,14]
[341427666,1730878249149,-500.0,0.00037995,14]
[341427667,1730878249160,-500.0,0.00037995,14]
[341427668,1730878249172,-500.0,0.00037995,14]
[341427669,1730878249187,-500.0,0.00037995,14]
[341427670,1730878249198,-500.0,0.00037995,14]
[341427671,1730878249211,-500.0,0.00037995,14]
[341427672,1730878249223,-548.78008183,0.00037995,14]
[341427673,1730878249237,-500.0,0.00037995,14]
[341427674,1730878249248,-500.0,0.00037995,14]
[341427675,1730878249261,-500.0,0.00037995,14]
[341427676,1730878249273,-500.0,0.00037995,14]
[341427677,1730878249283,-529.98257978,0.00037995,14]
[341427678,1730878249293,-500.0,0.00037995,14]
[341427679,1730878249305,-500.0,0.00037995,14]
[341427680,1730878249316,-573.65675279,0.00037995,14]
[341427681,1730878249328,-500.0,0.00037995,14]
[341427682,1730878249339,-500.0,0.00037995,14]
[341427683,1730878249351,-501.24994404,0.00037995,14]
[341427684,1730878249363,-500.0,0.00037995,14]
[341427685,1730878249375,-500.0,0.00037995,14]
[341427686,1730878249386,-500.0,0.00037995,14]
[341427687,1730878249400,-591.64,0.00037995,14]
[341427688,1730878249412,-500.0,0.00037995,14]
[341427689,1730878249423,-500.0,0.00037995,14]
[341427690,1730878249437,-500.0,0.00037995,14]
[341427691,1730878249450,-500.0,0.00037995,14]
[341427692,1730878249463,-416.59299583,0.00037995,14]
[341427693,1730878249475,-500.0,0.00037995,14]
[341427694,1730878249486,-500.0,0.00037995,14]
[341427695,1730878249498,-514.02691495,0.00037995,14]
[341427696,1730878249508,-500.0,0.00037995,14]
[341427697,1730878249519,-250.0,0.00037995,14]
[341427698,1730878249531,-500.0,0.00037995,14]
[341427699,1730878249542,-596.22980671,0.00037995,14]
[341427700,1730878249553,-518.57560051,0.00037995,14]
[341427701,1730878249564,-500.0,0.00037995,14]
[341427702,1730878249576,-500.0,0.00037995,14]
[341427703,1730878249587,-500.0,0.00037995,14]
[341427704,1730878249598,-500.0,0.00037995,14]
[341427705,1730878249609,-500.0,0.00037995,14]
[341427706,1730878249620,-500.0,0.00037995,14]
[341427707,1730878249630,-506.81698876,0.00037995,14]
[341427708,1730878249641,-500.0,0.00037995,14]
[341427709,1730878249652,-500.0,0.00037995,14]
[341427710,1730878249663,-540.15841588,0.00037995,14]
[341427711,1730878249673,-500.0,0.00037995,14]
[341427712,1730878249689,-647.01641321,0.00037995,14]
[341427713,1730878249700,-500.0,0.00037995,14]
[341427714,1730878249711,-579.29355661,0.00037995,14]
[341427715,1730878249722,-500.0,0.00037995,14]
[341427716,1730878249733,-500.0,0.00037995,14]
[341427717,1730878249744,-500.0,0.00037995,14]
[341427718,1730878249754,-416.09780576,0.00037995,14]
[341427719,1730878249765,-500.0,0.00037995,14]
[341427720,1730878249776,-500.0,0.00037995,14]
[341427721,1730878249787,-500.0,0.00037995,14]
[341427722,1730878249798,-500.0,0.00037995,14]
[341427723,1730878249810,-500.0,0.00037995,14]
[341427724,1730878249821,-500.0,0.00037995,14]
[341427725,1730878249833,-545.90044241,0.00037995,14]
[341427726,1730878249844,-500.0,0.00037995,14]
[341427727,1730878249859,-500.0,0.00037995,14]
[341427728,1730878249871,-500.0,0.00037995,14]
[341427729,1730878249882,-500.0,0.00037995,14]
[341427730,1730878249894,-189.62243035,0.00037995,14]
[341427731,1730878249905,-500.0,0.00037995,14]
[341427732,1730878249917,-500.0,0.00037995,14]
[341427733,1730878249930,-500.0,0.00037995,14]
[341427734,1730878249941,-500.0,0.00037995,14]
[341427735,1730878249951,-500.0,0.00037995,14]
[341427736,1730878249962,-500.0,0.00037995,14]
[341427737,1730878249973,-500.0,0.00037995,14]
[341427738,1730878249984,-500.0,0.00037995,14]
[341427739,1730878249995,-500.0,0.00037995,14]
[341427740,1730878250006,-500.0,0.00037995,14]
[341427741,1730878250017,-291.36982394,0.00037995,14]
[341427742,1730878250029,-500.0,0.00037995,14]
[341427743,1730878250040,-500.0,0.00037995,14]
[341427744,1730878250052,-500.0,0.00037995,14]
[341427745,1730878250063,-500.0,0.00037995,14]
[341427746,1730878250075,-500.0,0.00037995,14]
[341427747,1730878250086,-500.0,0.00037995,14]
[341427748,1730878250096,-500.0,0.00037995,14]
[341427749,1730878250108,-500.0,0.00037995,14]
[341427750,1730878250119,-500.0,0.00037995,14]
[341427751,1730878250130,-500.0,0.00037995,14]
[341427752,1730878250141,-500.0,0.00037995,14]
[341427753,1730878250153,-518.53209222,0.00037995,14]
[341427754,1730878250164,-537.99502771,0.00037995,14]
[341427755,1730878250175,-572.52,0.00037995,14]
[341427756,1730878250188,-500.0,0.00037995,14]
[341427757,1730878250199,-500.0,0.00037995,14]
[341427758,1730878250210,-500.0,0.00037995,14]
[341427759,1730878250222,-500.0,0.00037995,14]
[341427760,1730878250233,-500.0,0.00037995,14]
[341427761,1730878250244,-500.0,0.00037995,14]
[341427762,1730878250257,-500.0,0.00037995,14]
[341427763,1730878250269,-500.0,0.00037995,14]
[341427764,1730878250280,-500.0,0.00037995,14]
[341427765,1730878250291,-500.0,0.00037995,14]
[341427766,1730878250303,-500.0,0.00037995,14]
[341427767,1730878250314,-500.0,0.00037995,14]
[341427768,1730878250324,-500.0,0.00037995,14]
[341427769,1730878250335,-200.0,0.00037995,7]
[341427770,1730878250346,-500.0,0.00037995,14]
[341427771,1730878250357,-616.20710746,0.00037995,14]
[341427772,1730878250368,-500.0,0.00037995,14]
[341427773,1730878250379,-500.0,0.00037995,14]
[341427774,1730878250390,-576.72188645,0.00037995,14]
[341427775,1730878250401,-500.0,0.00037995,14]
[341427776,1730878250415,-500.0,0.00037995,14]
[341427777,1730878250426,-532.30993172,0.00037995,14]
[341427778,1730878250439,-500.0,0.00037995,14]
[341427779,1730878250450,-500.0,0.00037995,14]
[341427780,1730878250461,-500.0,0.00037995,14]
[341427781,1730878250472,-500.0,0.00037995,14]
[341427782,1730878250485,-500.0,0.00037995,14]
[341427783,1730878250496,-422.24048085,0.00037995,14]
[341427784,1730878250506,-500.0,0.00037995,14]
[341427785,1730878250517,-500.0,0.00037995,14]
[341427786,1730878250528,-518.79286141,0.00037995,14]
[341427787,1730878250538,-500.0,0.00037995,14]
[341427788,1730878250549,-500.0,0.00037995,14]
[341427789,1730878250560,-500.0,0.00037995,14]
[341427790,1730878250571,-500.0,0.00037995,14]
[341427791,1730878250582,-500.0,0.00037995,14]
[341427792,1730878250592,-500.0,0.00037995,14]
[341427793,1730878250603,-500.0,0.00037995,14]
[341427794,1730878250614,-500.0,0.00037995,14]
[341427795,1730878250625,-508.46519119,0.00037995,14]
[341427796,1730878250637,-500.0,0.00037995,14]
[341427797,1730878250648,-500.0,0.00037995,14]
[341427798,1730878250659,-500.0,0.00037995,14]
[341427799,1730878250670,-522.47192876,0.00037995,14]
[341427800,1730878250681,-500.0,0.00037995,14]
[341427801,1730878250691,-500.0,0.00037995,14]
[341427802,1730878250701,-500.0,0.00037995,14]
[341427803,1730878250712,-500.0,0.00037995,14]
[341427804,1730878250722,-523.07362517,0.00037995,14]
[341427805,1730878250732,-500.0,0.00037995,14]
[341427806,1730878250742,-500.0,0.00037995,14]
[341427807,1730878250753,-500.0,0.00037995,14]
[341427808,1730878250765,-500.0,0.00037995,14]
[341427809,1730878250776,-500.0,0.00037995,14]
[341427810,1730878250786,-500.0,0.00037995,14]
[341427811,1730878250796,-510.68452589,0.00037995,14]
[341427812,1730878250806,-500.0,0.00037995,14]
[341427813,1730878250816,-254.31667639,0.00037995,14]
[341427814,1730878250827,-500.0,0.00037995,14]
[341427815,1730878250837,-500.0,0.00037995,14]
[341427816,1730878250847,-500.0,0.00037995,14]
[341427817,1730878250857,-500.0,0.00037995,14]
[341427818,1730878250867,-500.0,0.00037995,14]
[341427819,1730878250877,-500.0,0.00037995,14]
[341427820,1730878250886,-500.0,0.00037995,14]
[341427821,1730878250897,-500.0,0.00037995,14]
[341427822,1730878250907,-444.01123869,0.00037995,14]
[341427823,1730878250917,-539.21628959,0.00037995,14]
[341427824,1730878250931,-500.0,0.00037995,14]
[341427825,1730878250941,-525.8104113,0.00037995,14]
[341427826,1730878250951,-624.05311239,0.00037995,14]
[341427827,1730878250962,-500.0,0.00037995,14]
[341427828,1730878250972,-500.0,0.00037995,14]
[341427829,1730878250982,-500.0,0.00037995,14]
[341427830,1730878250993,-500.0,0.00037995,14]
[341427831,1730878251003,-500.0,0.00037995,14]
[341427832,1730878251013,-278.83999685,0.00037995,14]
[341427833,1730878251023,-500.0,0.00037995,14]
[341427834,1730878251034,-500.0,0.00037995,14]
[341427835,1730878251043,-500.0,0.00037995,14]
[341427836,1730878251054,-500.0,0.00037995,14]
[341427837,1730878251065,-521.32307581,0.00037995,14]
[341427838,1730878251075,-609.62724326,0.00037995,14]
[341427839,1730878251085,-500.0,0.00037995,14]
[341427840,1730878251096,-505.16813074,0.00037995,14]
[341427841,1730878251106,-590.22883802,0.00037995,14]
[341427842,1730878251116,-500.0,0.00037995,14]
[341427843,1730878251127,-500.0,0.00037995,14]
[341427844,1730878251137,-500.0,0.00037995,14]
[341427845,1730878251147,-500.0,0.00037995,14]
[341427846,1730878251158,-500.0,0.00037995,14]
[341427847,1730878251168,-500.0,0.00037995,14]
[341427848,1730878251180,-535.14530221,0.00037995,14]
[341427849,1730878251191,-500.0,0.00037995,14]
[341427850,1730878251201,-500.0,0.00037995,14]
[341427851,1730878251211,-549.95681763,0.00037995,14]
[341427852,1730878251222,-500.0,0.00037995,14]
[341427853,1730878251232,-503.32939261,0.00037995,14]
[341427854,1730878251243,-500.0,0.00037995,14]
[341427855,1730878251253,-500.0,0.00037995,14]
[341427856,1730878251263,-500.0,0.00037995,14]
[341427857,1730878251274,-244.92310089,0.00037995,14]
[341427858,1730878251283,-513.92942779,0.00037995,14]
[341427859,1730878251294,-500.0,0.00037995,14]
[341427860,1730878251304,-500.0,0.00037995,14]
[341427861,1730878251314,-246.16000315,0.00037995,14]
[341427862,1730878251325,-500.0,0.00037995,14]
[341427863,1730878251336,-500.0,0.00037995,14]
[341427864,1730878251346,-500.0,0.00037995,14]
[341427865,1730878251356,-500.0,0.00037995,14]
[341427866,1730878251366,-500.0,0.00037995,14]
[341427867,1730878251377,-551.14,0.00037995,14]
[341427868,1730878251387,-504.3551615,0.00037995,14]
[341427869,1730878251402,-400.570572,0.00037995,14]
[341427870,1730878251415,-500.0,0.00037995,14]
[341427871,1730878251430,-500.38089202,0.00037995,14]
[341427872,1730878251443,-500.0,0.00037995,14]
[341427873,1730878251453,-316.46954675,0.00037995,14]
[341427874,1730878251464,-500.0,0.00037995,14]
[341427875,1730878251474,-500.0,0.00037995,14]
[341427876,1730878251486,-500.0,0.00037995,14]
[341427877,1730878251498,-500.0,0.00037995,14]
[341427878,1730878251510,-250.3930412,0.00037995,14]
[341427879,1730878251524,-500.0,0.00037995,14]
[341427880,1730878251537,-500.0,0.00037995,14]
[341427881,1730878251547,-500.0,0.00037995,14]
[341427882,1730878251557,-500.0,0.00037995,14]
[341427883,1730878251567,-500.0,0.00037995,14]
[341427884,1730878251578,-528.17092418,0.00037995,14]
[341427885,1730878251588,-500.0,0.00037995,14]
[341427886,1730878251598,-524.9423509,0.00037995,14]
[341427887,1730878251608,-483.92711661,0.00037995,14]
[341427888,1730878251618,-566.34267696,0.00037995,14]
[341427889,1730878251628,-501.69697958,0.00037995,14]
[341427890,1730878251638,-500.0,0.00037995,2]
[341427891,1730878251650,-500.0,0.00037995,14]
[341427892,1730878251660,-500.0,0.00037995,14]
[341427893,1730878251669,-505.14265171,0.00037995,14]
[341427894,1730878251679,-500.0,0.00037995,14]
[341427895,1730878251689,-500.0,0.00037995,14]
[341427896,1730878251699,-500.0,0.00037995,14]
[341427897,1730878251709,-500.0,0.00037995,14]
[341427898,1730878251720,-500.0,0.00037995,14]
[341427899,1730878251730,-500.0,0.00037995,14]
[341427900,1730878251740,-500.0,0.00037995,14]
[341427901,1730878251750,-500.0,0.00037995,14]
[341427902,1730878251760,-500.0,0.00037995,14]
[341427903,1730878251770,-500.0,0.00037995,14]
[341427904,1730878251780,-500.0,0.00037995,14]
[341427905,1730878251790,-511.28219718,0.00037995,14]
[341427906,1730878251800,-500.0,0.00037995,14]
[341427907,1730878252188,-500.0,0.00037995,14]
[341427908,1730878252209,-526.6819334,0.00037995,14]
[341427909,1730878252222,-308.24794358,0.00037995,14]
[341427910,1730878252232,-500.0,0.00037995,14]
[341427911,1730878252241,-555.02029284,0.00037995,14]
[341427912,1730878252251,-507.94858729,0.00037995,14]
[341427913,1730878252261,-500.0,0.00037995,14]
[341427914,1730878252271,-500.0,0.00037995,14]
[341427915,1730878252279,-533.68866994,0.00037995,14]
[341427916,1730878252289,-500.0,0.00037995,14]
[341427917,1730878252299,-311.94564416,0.00037995,14]
[341427918,1730878252309,-576.82760215,0.00037995,14]
[341427919,1730878252318,-500.0,0.00037995,14]
[341427920,1730878252327,-500.0,0.00037995,14]
[341427921,1730878252337,-500.0,0.00037995,14]
[341427922,1730878252346,-546.41842063,0.00037995,14]
[341427923,1730878252355,-500.0,0.00037995,14]
[341427924,1730878252364,-557.09160404,0.00037995,14]
[341427925,1730878252374,-1929.99,0.00037995,14]
[341427926,1730878252383,-500.0,0.00037995,14]
[341427927,1730878252394,-500.0,0.00037995,14]
[341427928,1730878252406,-538.46065603,0.00037995,14]
[341427929,1730878252416,-500.0,0.00037995,14]
[341427930,1730878252425,-500.0,0.00037995,14]
[341427931,1730878252439,-538.05478124,0.00037995,14]
[341427932,1730878252449,-500.0,0.00037995,14]
[341427933,1730878252458,-500.0,0.00037995,14]
[341427934,1730878252467,-500.0,0.00037995,14]
[341427935,1730878252479,-506.0634541,0.00037995,14]
[341427936,1730878252490,-500.0,0.00037995,14]
[341427937,1730878252501,-500.0,0.00037995,14]
[341427938,1730878252514,-500.0,0.00037995,14]
[341427939,1730878252523,-500.0,0.00037995,14]
[341427940,1730878252532,-500.0,0.00037995,14]
[341427941,1730878252542,-500.0,0.00037995,14]
[341427942,1730878252552,-268.12594805,0.00037995,14]
[341427943,1730878252561,-500.0,0.00037995,14]
[341427944,1730878252571,-500.0,0.00037995,14]
[341427945,1730878252581,-523.80019347,0.00037995,14]
[341427946,1730878252590,-530.52161286,0.00037995,14]
[341427947,1730878252599,-500.0,0.00037995,14]